[Event "Titled Tuesday Blitz October 11 Late 2022"]
[White "Mazurkiewicz, Michal"]
[Black "Curtis, John"]
[WhiteFideId "1124943"]
[BlackFideId "3200256"]
[WhiteElo "2063"]
[BlackElo "2203"]
[Result "1-0"]
[Round "05"]
[TimeControl "180+1"]
[Date "2022.10.12"]
[WhiteClock "0:00:35"]
[BlackClock "0:00:01"]

1. e4 {[%clk 0:03:00]}  c5 {[%clk 0:02:57]} 2. Nf3 {[%clk 0:03:00]}  d6 {[%clk 0:02:57]} 3. g3 {[%clk 0:03:00]}  g6 {[%clk 0:02:57]} 4. Bg2 {[%clk 0:03:00]}  Bg7 {[%clk 0:02:57]} 5. O-O {[%clk 0:03:01]}  Nc6 {[%clk 0:02:57]} 6. d3 {[%clk 0:03:01]}  Nf6 {[%clk 0:02:58]} 7. Re1 {[%clk 0:03:01]}  O-O {[%clk 0:02:57]} 8. e5 {[%clk 0:03:01]}  Ng4 {[%clk 0:02:43]} 9. exd6 {[%clk 0:03:01]}  exd6 {[%clk 0:02:44]} 10. Nc3 {[%clk 0:03:01]}  d5 {[%clk 0:02:44]} 11. Bg5 {[%clk 0:02:58]}  Bf6 {[%clk 0:02:35]} 12. Bxf6 {[%clk 0:02:57]}  Nxf6 {[%clk 0:02:35]} 13. Ne5 {[%clk 0:02:57]}  Re8 {[%clk 0:02:30]} 14. Nxc6 {[%clk 0:02:49]}  bxc6 {[%clk 0:02:21]} 15. Qd2 {[%clk 0:02:47]}  Rxe1+ {[%clk 0:02:05]} 16. Rxe1 {[%clk 0:02:46]}  Be6 {[%clk 0:02:05]} 17. Na4 {[%clk 0:02:44]}  Nd7 {[%clk 0:02:00]} 18. Qc3 {[%clk 0:02:31]}  Qf8 {[%clk 0:01:46]} 19. Qa5 {[%clk 0:02:17]}  Qd8 {[%clk 0:01:43]} 20. Qc3 {[%clk 0:01:56]}  Qf8 {[%clk 0:01:42]} 21. h4 {[%clk 0:01:57]}  a5 {[%clk 0:01:35]} 22. h5 {[%clk 0:01:56]}  Qg7 {[%clk 0:01:30]} 23. Qa3 {[%clk 0:01:48]}  Qf8 {[%clk 0:01:22]} 24. c3 {[%clk 0:01:25]}  Rb8 {[%clk 0:01:20]} 25. c4 {[%clk 0:00:57]}  Ra8 {[%clk 0:00:33]} 26. Nc3 {[%clk 0:00:54]}  Nf6 {[%clk 0:00:20]} 27. hxg6 {[%clk 0:00:54]}  hxg6 {[%clk 0:00:20]} 28. Qa4 {[%clk 0:00:54]}  Qc8 {[%clk 0:00:18]} 29. Qa3 {[%clk 0:00:51]}  Qf8 {[%clk 0:00:18]} 30. Na4 {[%clk 0:00:51]}  Nd7 {[%clk 0:00:16]} 31. Qb3 {[%clk 0:00:51]}  Rb8 {[%clk 0:00:15]} 32. Qc3 {[%clk 0:00:51]}  Rb4 {[%clk 0:00:15]} 33. b3 {[%clk 0:00:49]}  dxc4 {[%clk 0:00:13]} 34. dxc4 {[%clk 0:00:49]}  Qg7 {[%clk 0:00:09]} 35. Qxg7+ {[%clk 0:00:42]}  Kxg7 {[%clk 0:00:09]} 36. Bxc6 {[%clk 0:00:43]}  Kf6 {[%clk 0:00:04]} 37. Bxd7 {[%clk 0:00:43]}  Bxd7 {[%clk 0:00:04]} 38. Nxc5 {[%clk 0:00:44]}  Bf5 {[%clk 0:00:02]} 39. Rd1 {[%clk 0:00:38]}  g5 {[%clk 0:00:02]} 40. Rd6+ {[%clk 0:00:38]}  Ke5 {[%clk 0:00:02]} 41. Ra6 {[%clk 0:00:38]}  Kd4 {[%clk 0:00:03]} 42. Rxa5 {[%clk 0:00:37]}  Rb8 {[%clk 0:00:02]} 43. Na4 {[%clk 0:00:36]}  Re8 {[%clk 0:00:01]} 44. Rxf5 {[%clk 0:00:36]}  Re1+ {[%clk 0:00:02]} 45. Kg2 {[%clk 0:00:36]}  g4 {[%clk 0:00:03]} 46. Rf4+ {[%clk 0:00:36]}  Kd3 {[%clk 0:00:02]} 47. Rxg4 {[%clk 0:00:37]}  Re2 {[%clk 0:00:03]} 48. Rf4 {[%clk 0:00:35]}  Rxa2 {[%clk 0:00:03]} 49. Rxf7 {[%clk 0:00:35]}  Ra3 {[%clk 0:00:03]} 50. g4 {[%clk 0:00:34]}  Kd4 {[%clk 0:00:03]} 51. Rd7+ {[%clk 0:00:34]}  Ke5 {[%clk 0:00:03]} 52. Rb7 {[%clk 0:00:34]}  Kf4 {[%clk 0:00:02]} 53. c5 {[%clk 0:00:34]}  Ra1 {[%clk 0:00:01]} 54. c6 {[%clk 0:00:34]}  Rc1 {[%clk 0:00:01]} 55. c7 {[%clk 0:00:34]}  Kxg4 {[%clk 0:00:01]} 56. Rb4+ {[%clk 0:00:34]}  Kf5 {[%clk 0:00:01]} 57. Rc4 {[%clk 0:00:35]}  Rxc4 {[%clk 0:00:01]} 58. bxc4 {[%clk 0:00:35]} 1-0


[Site "https://www.chess.com"]

[Event "Titled Tuesday Blitz October 11 Late 2022"]
[White "Melikyan, Gnel"]
[Black "Ballester Llagaria, Luis Eduardo"]
[WhiteFideId "54109990"]
[BlackFideId "2297620"]
[WhiteElo "2138"]
[BlackElo "2344"]
[Result "0-1"]
[Round "05"]
[TimeControl "180+1"]
[Date "2022.10.12"]
[WhiteClock "0:00:29"]
[BlackClock "0:00:18"]

1. d4 {[%clk 0:03:00]}  d5 {[%clk 0:02:52]} 2. c4 {[%clk 0:03:00]}  dxc4 {[%clk 0:02:49]} 3. e3 {[%clk 0:02:58]}  Nf6 {[%clk 0:02:49]} 4. Bxc4 {[%clk 0:02:59]}  e6 {[%clk 0:02:49]} 5. Nf3 {[%clk 0:02:59]}  a6 {[%clk 0:02:50]} 6. O-O {[%clk 0:02:59]}  b5 {[%clk 0:02:50]} 7. Bb3 {[%clk 0:02:59]}  Bb7 {[%clk 0:02:51]} 8. Nc3 {[%clk 0:02:59]}  c5 {[%clk 0:02:49]} 9. dxc5 {[%clk 0:02:57]}  Qxd1 {[%clk 0:02:49]} 10. Rxd1 {[%clk 0:02:57]}  Bxc5 {[%clk 0:02:50]} 11. Bd2 {[%clk 0:02:58]}  Nbd7 {[%clk 0:02:49]} 12. Rac1 {[%clk 0:02:58]}  Ke7 {[%clk 0:02:49]} 13. Ne2 {[%clk 0:02:56]}  Rac8 {[%clk 0:02:47]} 14. Ned4 {[%clk 0:02:52]}  Rhd8 {[%clk 0:02:47]} 15. Ba5 {[%clk 0:02:50]}  Bb6 {[%clk 0:02:40]} 16. Bb4+ {[%clk 0:02:47]}  Ke8 {[%clk 0:02:33]} 17. a3 {[%clk 0:02:13]}  Rxc1 {[%clk 0:01:56]} 18. Rxc1 {[%clk 0:02:13]}  Rc8 {[%clk 0:01:56]} 19. Rxc8+ {[%clk 0:02:13]}  Bxc8 {[%clk 0:01:57]} 20. Kf1 {[%clk 0:02:02]}  Bb7 {[%clk 0:01:56]} 21. Bd1 {[%clk 0:01:55]}  Nd5 {[%clk 0:01:45]} 22. Bd2 {[%clk 0:01:55]}  Nc5 {[%clk 0:01:43]} 23. Bc2 {[%clk 0:01:50]}  g6 {[%clk 0:01:34]} 24. Ke2 {[%clk 0:01:50]}  Ke7 {[%clk 0:01:31]} 25. b4 {[%clk 0:01:41]}  Nd7 {[%clk 0:01:28]} 26. a4 {[%clk 0:01:41]}  e5 {[%clk 0:01:13]} 27. a5 {[%clk 0:01:19]}  exd4 {[%clk 0:00:56]} 28. axb6 {[%clk 0:01:19]}  dxe3 {[%clk 0:00:53]} 29. fxe3 {[%clk 0:01:18]}  N7xb6 {[%clk 0:00:49]} 30. e4 {[%clk 0:01:14]}  Nc7 {[%clk 0:00:47]} 31. Be3 {[%clk 0:01:08]}  Nc4 {[%clk 0:00:47]} 32. Bc5+ {[%clk 0:01:08]}  Ke8 {[%clk 0:00:43]} 33. Nd4 {[%clk 0:00:59]}  Kd7 {[%clk 0:00:33]} 34. Bb3 {[%clk 0:00:54]}  Bxe4 {[%clk 0:00:30]} 35. g3 {[%clk 0:00:50]}  Bd5 {[%clk 0:00:26]} 36. Nf3 {[%clk 0:00:47]}  f6 {[%clk 0:00:20]} 37. Ne1 {[%clk 0:00:39]}  Ne6 {[%clk 0:00:20]} 38. Bf2 {[%clk 0:00:37]}  Kc6 {[%clk 0:00:18]} 39. Nd3 {[%clk 0:00:35]}  Ne5 {[%clk 0:00:18]} 40. Nc1 {[%clk 0:00:31]}  Bxb3 {[%clk 0:00:17]} 41. Nxb3 {[%clk 0:00:32]}  Nc4 {[%clk 0:00:17]} 42. Kd3 {[%clk 0:00:32]}  Kd5 {[%clk 0:00:17]} 43. Kc3 {[%clk 0:00:28]}  Ng5 {[%clk 0:00:16]} 44. Nc5 {[%clk 0:00:28]}  Ne4+ {[%clk 0:00:17]} 45. Nxe4 {[%clk 0:00:28]}  Kxe4 {[%clk 0:00:18]} 46. Bd4 {[%clk 0:00:28]}  f5 {[%clk 0:00:18]} 47. Bf6 {[%clk 0:00:28]}  Kf3 {[%clk 0:00:17]} 48. Kd4 {[%clk 0:00:28]}  Kg2 {[%clk 0:00:17]} 49. Kc5 {[%clk 0:00:27]}  Kxh2 {[%clk 0:00:18]} 50. Bh4 {[%clk 0:00:27]}  Kh3 {[%clk 0:00:17]} 51. Kc6 {[%clk 0:00:27]}  f4 {[%clk 0:00:17]} 52. gxf4 {[%clk 0:00:27]}  Kxh4 {[%clk 0:00:17]} 53. Kb7 {[%clk 0:00:28]}  Kg4 {[%clk 0:00:17]} 54. Kxa6 {[%clk 0:00:28]}  Na3 {[%clk 0:00:17]} 55. f5 {[%clk 0:00:29]}  gxf5 {[%clk 0:00:18]} 0-1


[Site "https://www.chess.com"]

[Event "Titled Tuesday Blitz October 11 Late 2022"]
[White "Mikhailov, Viacheslav"]
[Black "Svane, Rasmus"]
[WhiteFideId "4187369"]
[BlackFideId "4657101"]
[WhiteElo "2381"]
[BlackElo "2674"]
[Result "0-1"]
[Round "05"]
[TimeControl "180+1"]
[Date "2022.10.11"]
[WhiteClock "0:00:33"]
[BlackClock "0:01:27"]

1. Nf3 {[%clk 0:03:00]}  d5 {[%clk 0:02:57]} 2. g3 {[%clk 0:03:00]}  g6 {[%clk 0:02:54]} 3. Bg2 {[%clk 0:03:00]}  Bg7 {[%clk 0:02:54]} 4. c4 {[%clk 0:03:01]}  dxc4 {[%clk 0:02:54]} 5. O-O {[%clk 0:03:01]}  Nc6 {[%clk 0:02:53]} 6. Na3 {[%clk 0:03:01]}  e5 {[%clk 0:02:52]} 7. Nxc4 {[%clk 0:03:00]}  e4 {[%clk 0:02:51]} 8. Ne1 {[%clk 0:02:59]}  Be6 {[%clk 0:02:48]} 9. Ne3 {[%clk 0:02:57]}  f5 {[%clk 0:02:48]} 10. d3 {[%clk 0:02:57]}  Nf6 {[%clk 0:02:48]} 11. dxe4 {[%clk 0:02:54]}  Qxd1 {[%clk 0:02:47]} 12. Nxd1 {[%clk 0:02:55]}  Nxe4 {[%clk 0:02:48]} 13. Nd3 {[%clk 0:02:53]}  O-O-O {[%clk 0:02:41]} 14. Be3 {[%clk 0:02:28]}  Bc4 {[%clk 0:02:31]} 15. Rc1 {[%clk 0:01:14]}  Bxd3 {[%clk 0:02:23]} 16. exd3 {[%clk 0:01:15]}  Rxd3 {[%clk 0:02:24]} 17. Bxe4 {[%clk 0:01:09]}  fxe4 {[%clk 0:02:25]} 18. Nc3 {[%clk 0:01:09]}  Bxc3 {[%clk 0:02:24]} 19. bxc3 {[%clk 0:01:10]}  Ne5 {[%clk 0:02:12]} 20. Kg2 {[%clk 0:01:10]}  Nf3 {[%clk 0:02:09]} 21. h4 {[%clk 0:01:08]}  Rhd8 {[%clk 0:02:07]} 22. h5 {[%clk 0:01:04]}  g5 {[%clk 0:02:06]} 23. h6 {[%clk 0:01:03]}  Kd7 {[%clk 0:01:51]} 24. Rb1 {[%clk 0:00:56]}  b6 {[%clk 0:01:50]} 25. Rfc1 {[%clk 0:00:53]}  c5 {[%clk 0:01:38]} 26. a4 {[%clk 0:00:53]}  Kc6 {[%clk 0:01:38]} 27. a5 {[%clk 0:00:48]}  b5 {[%clk 0:01:36]} 28. a6 {[%clk 0:00:46]}  R8d6 {[%clk 0:01:33]} 29. Rb2 {[%clk 0:00:44]}  Rxh6 {[%clk 0:01:30]} 30. g4 {[%clk 0:00:33]}  Rxe3 {[%clk 0:01:27]} 0-1


[Site "https://www.chess.com"]

[Event "Titled Tuesday Blitz October 11 Late 2022"]
[White "Mirzoev, Azer"]
[Black "Remolar Gallen, Jose"]
[WhiteFideId "13400304"]
[BlackFideId "2215187"]
[WhiteElo "2525"]
[BlackElo "2214"]
[Result "1-0"]
[Round "05"]
[TimeControl "180+1"]
[Date "2022.10.12"]
[WhiteClock "0:00:15"]
[BlackClock "0:00:05"]

1. Nf3 {[%clk 0:03:00]}  g6 {[%clk 0:02:59]} 2. c4 {[%clk 0:02:59]}  Bg7 {[%clk 0:02:59]} 3. Nc3 {[%clk 0:02:59]}  Nf6 {[%clk 0:02:58]} 4. g3 {[%clk 0:03:00]}  O-O {[%clk 0:02:58]} 5. Bg2 {[%clk 0:03:01]}  d6 {[%clk 0:02:58]} 6. O-O {[%clk 0:03:01]}  Nc6 {[%clk 0:02:59]} 7. d4 {[%clk 0:02:56]}  a6 {[%clk 0:02:55]} 8. h3 {[%clk 0:02:47]}  Bd7 {[%clk 0:02:50]} 9. e4 {[%clk 0:02:42]}  e5 {[%clk 0:02:49]} 10. d5 {[%clk 0:02:40]}  Nd4 {[%clk 0:02:49]} 11. Nxd4 {[%clk 0:02:37]}  exd4 {[%clk 0:02:50]} 12. Qxd4 {[%clk 0:02:37]}  Qc8 {[%clk 0:02:50]} 13. e5 {[%clk 0:02:20]}  dxe5 {[%clk 0:02:42]} 14. Qh4 {[%clk 0:02:19]}  Nh5 {[%clk 0:02:07]} 15. c5 {[%clk 0:02:11]}  f5 {[%clk 0:02:01]} 16. Qc4 {[%clk 0:02:03]}  Kh8 {[%clk 0:01:55]} 17. Re1 {[%clk 0:02:03]}  e4 {[%clk 0:01:52]} 18. Bd2 {[%clk 0:01:48]}  Be5 {[%clk 0:01:31]} 19. Rad1 {[%clk 0:01:42]}  Qe8 {[%clk 0:01:23]} 20. Bh6 {[%clk 0:01:33]}  Rf7 {[%clk 0:01:18]} 21. a4 {[%clk 0:01:20]}  b5 {[%clk 0:00:51]} 22. axb5 {[%clk 0:01:15]}  Bxb5 {[%clk 0:00:46]} 23. Qb4 {[%clk 0:01:04]}  Rb8 {[%clk 0:00:46]} 24. Qa3 {[%clk 0:01:00]}  Bd3 {[%clk 0:00:18]} 25. d6 {[%clk 0:00:46]}  cxd6 {[%clk 0:00:16]} 26. cxd6 {[%clk 0:00:46]}  Qd7 {[%clk 0:00:16]} 27. Rxd3 {[%clk 0:00:45]}  exd3 {[%clk 0:00:15]} 28. Rxe5 {[%clk 0:00:45]}  d2 {[%clk 0:00:14]} 29. Bxd2 {[%clk 0:00:44]}  f4 {[%clk 0:00:14]} 30. g4 {[%clk 0:00:43]}  f3 {[%clk 0:00:13]} 31. Bf1 {[%clk 0:00:42]}  Nf4 {[%clk 0:00:13]} 32. Bxf4 {[%clk 0:00:42]}  Rxf4 {[%clk 0:00:14]} 33. Nd5 {[%clk 0:00:38]}  Rxg4+ {[%clk 0:00:14]} 34. Kh2 {[%clk 0:00:33]}  Rh4 {[%clk 0:00:08]} 35. Re7 {[%clk 0:00:17]}  Qf5 {[%clk 0:00:07]} 36. Qc3+ {[%clk 0:00:16]}  Kg8 {[%clk 0:00:05]} 37. Qg7# {[%clk 0:00:15]} 1-0


[Site "https://www.chess.com"]

[Event "Titled Tuesday Blitz October 11 Late 2022"]
[White "Ovezdurdyyeva, Jemal"]
[Black "Shandrygin, Nikita"]
[WhiteFideId "14001888"]
[BlackFideId "24198668"]
[WhiteElo "1961"]
[BlackElo "2323"]
[Result "0-1"]
[Round "05"]
[TimeControl "180+1"]
[Date "2022.10.12"]
[WhiteClock "0:00:09"]
[BlackClock "0:00:09"]

1. e4 {[%clk 0:03:00]}  c5 {[%clk 0:02:59]} 2. Nf3 {[%clk 0:02:59]}  e6 {[%clk 0:02:59]} 3. c3 {[%clk 0:02:59]}  Nf6 {[%clk 0:02:59]} 4. Bd3 {[%clk 0:02:56]}  d5 {[%clk 0:02:59]} 5. exd5 {[%clk 0:02:55]}  Nxd5 {[%clk 0:03:00]} 6. O-O {[%clk 0:02:54]}  Be7 {[%clk 0:02:57]} 7. Bc2 {[%clk 0:02:53]}  O-O {[%clk 0:02:58]} 8. d4 {[%clk 0:02:53]}  cxd4 {[%clk 0:02:59]} 9. cxd4 {[%clk 0:02:53]}  b6 {[%clk 0:02:51]} 10. Nc3 {[%clk 0:02:49]}  Bb7 {[%clk 0:02:51]} 11. a3 {[%clk 0:02:42]}  Nc6 {[%clk 0:02:51]} 12. Qd3 {[%clk 0:02:39]}  f5 {[%clk 0:02:26]} 13. Re1 {[%clk 0:02:34]}  Qd7 {[%clk 0:02:25]} 14. Bb3 {[%clk 0:02:18]}  Na5 {[%clk 0:02:09]} 15. Ba2 {[%clk 0:02:16]}  Rad8 {[%clk 0:02:04]} 16. b4 {[%clk 0:02:08]}  Nc6 {[%clk 0:01:48]} 17. Bb2 {[%clk 0:02:01]}  Bf6 {[%clk 0:01:40]} 18. Ne5 {[%clk 0:01:51]}  Nxe5 {[%clk 0:01:06]} 19. dxe5 {[%clk 0:01:46]}  Be7 {[%clk 0:01:06]} 20. Rad1 {[%clk 0:01:41]}  Kh8 {[%clk 0:00:50]} 21. Qg3 {[%clk 0:01:27]}  f4 {[%clk 0:00:17]} 22. Qh3 {[%clk 0:01:26]}  f3 {[%clk 0:00:12]} 23. Bb1 {[%clk 0:01:21]}  h6 {[%clk 0:00:09]} 24. Qg4 {[%clk 0:01:04]}  Nxc3 {[%clk 0:00:08]} 25. Rxd7 {[%clk 0:01:01]}  Ne2+ {[%clk 0:00:08]} 26. Rxe2 {[%clk 0:00:56]}  fxe2 {[%clk 0:00:09]} 27. Qxe2 {[%clk 0:00:37]}  Rxd7 {[%clk 0:00:09]} 28. h3 {[%clk 0:00:30]}  Bg5 {[%clk 0:00:09]} 29. Qg4 {[%clk 0:00:27]}  Rd2 {[%clk 0:00:06]} 30. Bc1 {[%clk 0:00:25]}  Rdxf2 {[%clk 0:00:03]} 31. Bxg5 {[%clk 0:00:22]}  Rxg2+ {[%clk 0:00:03]} 32. Qxg2 {[%clk 0:00:20]}  Bxg2 {[%clk 0:00:04]} 33. Be7 {[%clk 0:00:20]}  Rf7 {[%clk 0:00:04]} 34. Kxg2 {[%clk 0:00:17]}  Rxe7 {[%clk 0:00:04]} 35. Ba2 {[%clk 0:00:17]}  Kg8 {[%clk 0:00:04]} 36. Kf3 {[%clk 0:00:17]}  Kf7 {[%clk 0:00:05]} 37. Ke4 {[%clk 0:00:17]}  Rc7 {[%clk 0:00:06]} 38. Kd4 {[%clk 0:00:16]}  Ke7 {[%clk 0:00:07]} 39. Bc4 {[%clk 0:00:16]}  a5 {[%clk 0:00:07]} 40. bxa5 {[%clk 0:00:15]}  bxa5 {[%clk 0:00:08]} 41. a4 {[%clk 0:00:15]}  g5 {[%clk 0:00:08]} 42. Bb5 {[%clk 0:00:10]}  Rc1 {[%clk 0:00:07]} 43. Bc4 {[%clk 0:00:08]}  h5 {[%clk 0:00:07]} 44. Kc5 {[%clk 0:00:08]}  g4 {[%clk 0:00:07]} 45. hxg4 {[%clk 0:00:08]}  hxg4 {[%clk 0:00:08]} 46. Kb5 {[%clk 0:00:09]}  Rxc4 {[%clk 0:00:09]} 0-1


[Site "https://www.chess.com"]

[Event "Titled Tuesday Blitz October 11 Late 2022"]
[White "Perske, Thore"]
[Black "Osmonbekov, Talaibek"]
[WhiteFideId "12902195"]
[BlackFideId "2017253"]
[WhiteElo "2336"]
[BlackElo "2135"]
[Result "0-1"]
[Round "05"]
[TimeControl "180+1"]
[Date "2022.10.12"]
[WhiteClock "0:00:03"]
[BlackClock "0:00:07"]

1. e4 {[%clk 0:03:00]}  c5 {[%clk 0:03:00]} 2. Nf3 {[%clk 0:03:00]}  d6 {[%clk 0:03:00]} 3. g3 {[%clk 0:03:00]}  g6 {[%clk 0:02:57]} 4. Bg2 {[%clk 0:03:00]}  Bg7 {[%clk 0:02:58]} 5. O-O {[%clk 0:03:00]}  Nc6 {[%clk 0:02:58]} 6. d3 {[%clk 0:03:00]}  e6 {[%clk 0:02:58]} 7. c3 {[%clk 0:03:00]}  Nge7 {[%clk 0:02:59]} 8. d4 {[%clk 0:03:00]}  O-O {[%clk 0:02:54]} 9. Re1 {[%clk 0:02:46]}  Rb8 {[%clk 0:02:46]} 10. Bf4 {[%clk 0:02:29]}  cxd4 {[%clk 0:02:29]} 11. cxd4 {[%clk 0:02:27]}  e5 {[%clk 0:02:29]} 12. Be3 {[%clk 0:02:23]}  f5 {[%clk 0:01:48]} 13. Nc3 {[%clk 0:02:14]}  f4 {[%clk 0:01:45]} 14. gxf4 {[%clk 0:02:13]}  exf4 {[%clk 0:01:46]} 15. Bc1 {[%clk 0:02:13]}  h6 {[%clk 0:01:25]} 16. d5 {[%clk 0:01:56]}  Ne5 {[%clk 0:01:22]} 17. Nxe5 {[%clk 0:01:55]}  Bxe5 {[%clk 0:01:21]} 18. Bf3 {[%clk 0:01:49]}  h5 {[%clk 0:01:14]} 19. Kh1 {[%clk 0:01:49]}  Kh7 {[%clk 0:01:11]} 20. Rg1 {[%clk 0:01:48]}  Ng8 {[%clk 0:01:04]} 21. Bd2 {[%clk 0:01:41]}  Qh4 {[%clk 0:00:58]} 22. Qe2 {[%clk 0:01:39]}  Nh6 {[%clk 0:00:48]} 23. Rg2 {[%clk 0:01:18]}  Bh3 {[%clk 0:00:47]} 24. Rgg1 {[%clk 0:01:17]}  Ng4 {[%clk 0:00:45]} 25. Bxg4 {[%clk 0:01:15]}  hxg4 {[%clk 0:00:36]} 26. f3 {[%clk 0:01:14]}  g3 {[%clk 0:00:29]} 27. Be1 {[%clk 0:01:13]}  Kg7 {[%clk 0:00:22]} 28. Rc1 {[%clk 0:01:07]}  Rbc8 {[%clk 0:00:20]} 29. Rc2 {[%clk 0:00:44]}  Rh8 {[%clk 0:00:19]} 30. Rc1 {[%clk 0:00:30]}  a6 {[%clk 0:00:18]} 31. a3 {[%clk 0:00:28]}  b5 {[%clk 0:00:19]} 32. Rd1 {[%clk 0:00:27]}  Qh5 {[%clk 0:00:18]} 33. Rd3 {[%clk 0:00:20]}  Bd7 {[%clk 0:00:13]} 34. Rg2 {[%clk 0:00:18]}  Bh3 {[%clk 0:00:14]} 35. Rg1 {[%clk 0:00:19]}  Qh4 {[%clk 0:00:14]} 36. Rd1 {[%clk 0:00:18]}  a5 {[%clk 0:00:13]} 37. Nxb5 {[%clk 0:00:17]}  g2+ {[%clk 0:00:12]} 38. Rxg2 {[%clk 0:00:17]}  Bxg2+ {[%clk 0:00:12]} 39. Qxg2 {[%clk 0:00:17]}  Qe7 {[%clk 0:00:12]} 40. Nc3 {[%clk 0:00:17]}  Qb7 {[%clk 0:00:12]} 41. Qg4 {[%clk 0:00:11]}  Rc7 {[%clk 0:00:11]} 42. Kg2 {[%clk 0:00:09]}  Qb3 {[%clk 0:00:11]} 43. Kf1 {[%clk 0:00:08]}  Qxb2 {[%clk 0:00:10]} 44. Ne2 {[%clk 0:00:07]}  Rxh2 {[%clk 0:00:10]} 45. Rd2 {[%clk 0:00:03]}  Qb5 {[%clk 0:00:10]} 46. Kg1 {[%clk 0:00:03]}  Rh5 {[%clk 0:00:09]} 47. Nxf4 {[%clk 0:00:02]}  Bxf4 {[%clk 0:00:08]} 48. Qxf4 {[%clk 0:00:03]}  Rf7 {[%clk 0:00:07]} 49. Qxd6 {[%clk 0:00:03]}  Rxf3 {[%clk 0:00:07]} 50. Qe7+ {[%clk 0:00:03]}  Rf7 {[%clk 0:00:08]} 51. Qe6 {[%clk 0:00:03]}  Qf1# {[%clk 0:00:07]} 0-1


[Site "https://www.chess.com"]

[Event "Titled Tuesday Blitz October 11 Late 2022"]
[White "Petrova, Irina"]
[Black "Vargas, Mauricio"]
[WhiteFideId "14124122"]
[BlackFideId "4404572"]
[WhiteElo "2023"]
[BlackElo "2025"]
[Result "1-0"]
[Round "05"]
[TimeControl "180+1"]
[Date "2022.10.12"]
[WhiteClock "0:00:19"]
[BlackClock "0:00:12"]

1. e4 {[%clk 0:03:00]}  c6 {[%clk 0:02:58]} 2. d4 {[%clk 0:02:59]}  d5 {[%clk 0:02:59]} 3. Nc3 {[%clk 0:02:59]}  dxe4 {[%clk 0:02:59]} 4. Nxe4 {[%clk 0:03:00]}  Nf6 {[%clk 0:02:59]} 5. Nxf6+ {[%clk 0:03:00]}  exf6 {[%clk 0:03:00]} 6. Be3 {[%clk 0:03:00]}  Bd6 {[%clk 0:03:01]} 7. Bd3 {[%clk 0:02:59]}  Be6 {[%clk 0:03:00]} 8. Ne2 {[%clk 0:02:58]}  Nd7 {[%clk 0:02:58]} 9. Qd2 {[%clk 0:02:57]}  Qc7 {[%clk 0:02:49]} 10. Bf4 {[%clk 0:02:48]}  O-O-O {[%clk 0:02:46]} 11. O-O {[%clk 0:02:43]}  g5 {[%clk 0:02:42]} 12. Bxd6 {[%clk 0:02:42]}  Qxd6 {[%clk 0:02:43]} 13. c4 {[%clk 0:02:34]}  h5 {[%clk 0:02:36]} 14. Rfc1 {[%clk 0:02:27]}  Rhg8 {[%clk 0:02:28]} 15. d5 {[%clk 0:02:22]}  Bg4 {[%clk 0:02:15]} 16. f3 {[%clk 0:01:56]}  c5 {[%clk 0:02:13]} 17. fxg4 {[%clk 0:01:54]}  hxg4 {[%clk 0:02:10]} 18. Bf5 {[%clk 0:01:50]}  Rh8 {[%clk 0:02:08]} 19. Ng3 {[%clk 0:01:45]}  Rh6 {[%clk 0:01:34]} 20. Re1 {[%clk 0:01:39]}  Rdh8 {[%clk 0:01:31]} 21. Bxd7+ {[%clk 0:01:31]}  Kxd7 {[%clk 0:01:30]} 22. Qe2 {[%clk 0:01:12]}  Rxh2 {[%clk 0:01:18]} 23. Qxg4+ {[%clk 0:01:11]}  Kc7 {[%clk 0:01:10]} 24. Re3 {[%clk 0:00:58]}  R8h4 {[%clk 0:01:04]} 25. Qe2 {[%clk 0:00:26]}  f5 {[%clk 0:00:49]} 26. Re1 {[%clk 0:00:23]}  f4 {[%clk 0:00:18]} 27. Re7+ {[%clk 0:00:22]}  Kb6 {[%clk 0:00:18]} 28. Qc2 {[%clk 0:00:19]}  fxg3 {[%clk 0:00:13]} 29. Qb3+ {[%clk 0:00:19]}  Ka6 {[%clk 0:00:12]} 30. Qb5# {[%clk 0:00:19]} 1-0


[Site "https://www.chess.com"]

[Event "Titled Tuesday Blitz October 11 Late 2022"]
[White "Prydun, Andriy"]
[Black "Urbina Perez, Juan Antonio"]
[WhiteFideId "14145898"]
[BlackFideId "2217368"]
[WhiteElo "2163"]
[BlackElo "2197"]
[Result "0-1"]
[Round "05"]
[TimeControl "180+1"]
[Date "2022.10.12"]
[WhiteClock "0:00:02"]
[BlackClock "0:00:17"]

1. e4 {[%clk 0:03:00]}  c5 {[%clk 0:02:59]} 2. Nf3 {[%clk 0:03:01]}  e6 {[%clk 0:03:00]} 3. g3 {[%clk 0:02:58]}  Nc6 {[%clk 0:02:52]} 4. Bg2 {[%clk 0:02:56]}  Nf6 {[%clk 0:02:53]} 5. Qe2 {[%clk 0:02:53]}  d6 {[%clk 0:02:45]} 6. b3 {[%clk 0:02:39]}  Be7 {[%clk 0:02:45]} 7. Bb2 {[%clk 0:02:39]}  O-O {[%clk 0:02:45]} 8. g4 {[%clk 0:02:33]}  Nxg4 {[%clk 0:02:39]} 9. Rg1 {[%clk 0:02:32]}  Nge5 {[%clk 0:02:36]} 10. Na3 {[%clk 0:02:24]}  Bf6 {[%clk 0:02:35]} 11. c3 {[%clk 0:02:16]}  Nxf3+ {[%clk 0:02:29]} 12. Bxf3 {[%clk 0:02:13]}  Rb8 {[%clk 0:02:25]} 13. Nc2 {[%clk 0:02:09]}  e5 {[%clk 0:02:23]} 14. Ne3 {[%clk 0:01:59]}  Be6 {[%clk 0:02:21]} 15. Qf1 {[%clk 0:01:32]}  b5 {[%clk 0:02:12]} 16. Qg2 {[%clk 0:01:24]}  c4 {[%clk 0:02:00]} 17. h4 {[%clk 0:01:14]}  a5 {[%clk 0:01:57]} 18. h5 {[%clk 0:01:12]}  cxb3 {[%clk 0:01:44]} 19. axb3 {[%clk 0:01:11]}  b4 {[%clk 0:01:42]} 20. c4 {[%clk 0:00:56]}  h6 {[%clk 0:01:14]} 21. Nd5 {[%clk 0:00:41]}  Bxd5 {[%clk 0:01:06]} 22. exd5 {[%clk 0:00:40]}  Nd4 {[%clk 0:01:03]} 23. Bxd4 {[%clk 0:00:36]}  exd4 {[%clk 0:01:04]} 24. Be4 {[%clk 0:00:32]}  Re8 {[%clk 0:01:03]} 25. d3 {[%clk 0:00:31]}  Qd7 {[%clk 0:00:53]} 26. Qf3 {[%clk 0:00:31]}  Re5 {[%clk 0:00:51]} 27. Rxa5 {[%clk 0:00:29]}  Rbe8 {[%clk 0:00:43]} 28. Kf1 {[%clk 0:00:28]}  Bg5 {[%clk 0:00:40]} 29. Qg3 {[%clk 0:00:07]}  f5 {[%clk 0:00:39]} 30. Bf3 {[%clk 0:00:06]}  f4 {[%clk 0:00:33]} 31. Qg4 {[%clk 0:00:05]}  Qf7 {[%clk 0:00:32]} 32. Kg2 {[%clk 0:00:04]}  Bd8 {[%clk 0:00:25]} 33. Kh2 {[%clk 0:00:05]}  Rg5 {[%clk 0:00:22]} 34. Qh3 {[%clk 0:00:03]}  Rxg1 {[%clk 0:00:21]} 35. Kxg1 {[%clk 0:00:02]}  Qf6 {[%clk 0:00:17]} 0-1


[Site "https://www.chess.com"]